fUST/lending_fUST_20240126
["ID","MTS","AMOUNT","RATE_DAILY","PERIOD"]
[312777919,1706208643175,-151.0,0.000388,2]
[312777920,1706208643185,-170.345181,0.000388,2]
[312777921,1706208643194,-9030.278933,0.000388,2]
[312777922,1706208643203,-9030.278933,0.000388,2]
[312777923,1706208643212,-9030.278933,0.000388,2]
[312777924,1706208643222,-9030.278933,0.000388,2]
[312777925,1706208643231,-200.0,0.000389,4]
[312777926,1706208643240,-288.400246,0.00038943,2]
[312777927,1706208643250,-576.0,0.00039,2]
[312777928,1706208643259,-202.0,0.00039,2]
[312777929,1706208643269,-202.0,0.00039,2]
[312777930,1706208643277,-5000.0,0.00039055,7]
[312777931,1706208643286,-5000.0,0.00039092,7]
[312777932,1706208643295,-50000.0,0.00039092,7]
[312777933,1706208643304,-50000.0,0.00039092,7]
[312777934,1706208643313,-5000.0,0.00039092,7]
[312777935,1706208643322,-1328.69745,0.00039092,2]
[312777936,1706208643331,-1328.69745,0.00039092,2]
[312777937,1706208643341,-151.0,0.00039092,2]
[312777938,1706208643350,-411.448744,0.00039092,2]
[312777939,1706208643359,-411.448744,0.00039092,2]
[312777940,1706208643368,-831.24253,0.00039092,2]
[312777941,1706208643377,-151.0,0.00039092,2]
[312777942,1706208643386,-151.0,0.00039092,2]
[312777943,1706208643395,-151.0,0.00039092,2]
[312777944,1706208643404,-9030.278933,0.00039092,2]
[312777945,1706208643413,-9030.278933,0.00039092,2]
[312777946,1706208643422,-269.20480479,0.0003917,2]
[312777947,1706208643432,-157.894736,0.00039269,2]
[312777948,1706208643441,-285.50661289,0.00039356,4]
[312777949,1706208643451,-39545.65629829,0.00039358,7]
[312777950,1706208643460,-19293.99999999,0.00039358,30]
[312777951,1706208643469,-151.0,0.00039358,2]
[312777952,1706208643552,-151.0,0.00039358,2]
[312777953,1706208643561,-393.719375,0.00039358,2]
[312777954,1706208643571,-393.719375,0.00039358,2]
[312777955,1706208643580,-620.00016556,0.00039737,2]
[312777956,1706208643591,-157.894736,0.00039878,2]
[312777957,1706208643600,-10379.92800125,0.000399,2]
[312777958,1706208643609,-41291.62496613,0.00039919,10]
[312777959,1706208643619,-288.400246,0.00039922,2]
[312777960,1706208643628,-4041.39742033,0.0003999,4]
[312777961,1706208643637,-738.60088875,0.0004,2]
[312777962,1706208643646,-300.32940574,0.0004,2]
[312777963,1706208643656,-719.92364485,0.0004,2]
[312777964,1706208643665,-2720.3623587,0.0004,2]
[312777965,1706208643674,-1011.57393685,0.0004,60]
[312777966,1706208643683,-319.69879374,0.0004,4]
[312777967,1706208643693,-959.06296403,0.0004,2]
[312777968,1706208643703,-1230.84593677,0.0004,2]
[312777969,1706208643712,-2000.0,0.0004,27]
[312777970,1706208643721,-150.0,0.000401,2]
[312777971,1706208643730,-1000.0,0.00040237,10]
[312777972,1706208643739,-150.1,0.00040337,2]
[312777973,1706208643748,-157.894736,0.00040487,2]
[312777974,1706208643758,-843.93943614,0.00040848,5]
[312777975,1706208643767,-288.400246,0.000409,2]
[312777976,1706208643778,-200.0,0.00040904,30]
[312777977,1706208643787,-200.0,0.00040904,30]
[312777978,1706208643796,-200.0,0.00040904,30]
[312777979,1706208643805,-227.0,0.00040904,30]
[312777980,1706208643815,-7885.8344877,0.00041,2]
[312777981,1706208643824,-1328.69745,0.00041,2]
[312777982,1706208643833,-1328.69745,0.00041,2]
[312777983,1706208643843,-151.0,0.00041,2]
[312777984,1706208643853,-411.448744,0.00041,2]
[312777985,1706208643863,-411.448744,0.00041,2]
[312777986,1706208643872,-831.24253,0.00041,2]
[312777987,1706208643883,-249.0,0.00041,2]
[312777988,1706208643892,-151.0,0.00041,2]
[312777989,1706208643901,-151.0,0.00041,2]
[312777990,1706208643910,-9030.278933,0.00041,2]
[312777991,1706208643919,-9030.278933,0.00041,2]
[312777992,1706208643928,-500.0,0.00041095,2]
[312777993,1706208643938,-157.894736,0.00041096,2]
[312777994,1706208643948,-687.99504305,0.00041099,4]
[312777995,1706208643958,-151.10482067,0.000411,14]
[312777996,1706208643967,-777.0,0.0004128,2]
[312777997,1706208643978,-5000.0,0.00041394,15]
[312777998,1706208643988,-151.0,0.00041394,7]
[312777999,1706208643998,-151.0,0.00041394,7]
[312778000,1706208644009,-393.719375,0.00041394,7]
[312778001,1706208644019,-393.719375,0.00041394,7]
[312778002,1706208644028,-5000.0,0.00041431,15]
[312778003,1706208644038,-5000.0,0.00041431,15]
[312778004,1706208644047,-5000.0,0.00041431,15]
[312778005,1706208644057,-50000.0,0.00041431,15]
[312778006,1706208644067,-620.00000828,0.00041724,15]
[312778007,1706208644077,-17957.6498,0.00041752,7]
[312778008,1706208644087,-2629.98881365,0.000418,30]
[312778009,1706208644097,-5888.41021273,0.000418,36]
[312778010,1706208644107,-288.400246,0.00041879,2]
[312778011,1706208644118,-2875.0,0.00042,30]
[312778012,1706208644128,-249.62550631,0.00042,2]
[312778013,1706208644138,-53751.14608229,0.00042,30]
[312778014,1706208644148,-151.0,0.00042,7]
[312778015,1706208644158,-411.448744,0.00042,7]
[312778016,1706208644166,-411.448744,0.00042,7]
[312778017,1706208644175,-831.24253,0.00042,7]
[312778018,1706208644184,-831.24253,0.00042,7]
[312778019,1706208644193,-151.0,0.00042,7]
[312778020,1706208644202,-151.0,0.00042,7]
[312778021,1706208644212,-9030.278933,0.00042,7]
[312778022,1706208644221,-9030.278933,0.00042,7]
[312778023,1706208644231,-202.0,0.00042,2]
[312778024,1706208644240,-151.10482067,0.00042273,14]
[312778025,1706208644249,-9495.0,0.00042345,120]
[312778026,1706208644258,-288.400246,0.00042857,2]
[312778027,1706208644267,-245.402279,0.000429,18]
[312778028,1706208644277,-245.402279,0.000429,18]
[312778029,1706208644286,-157.46640728,0.00042998,4]
[312778030,1706208644295,-323.23544643,0.00042998,4]
[312778031,1706208644304,-5716.06790161,0.00042998,4]
[312778032,1706208644314,-156.23936971,0.00042998,2]
[312778033,1706208644325,-156.46424994,0.00042999,4]
[312778034,1706208644336,-274.01846199,0.00042999,4]
[312778035,1706208644346,-35527.63850823,0.00043,2]
[312778036,1706208644357,-309.8605821,0.00043,4]
[312778037,1706208644367,-5499.99999807,0.00043,2]
[312778038,1706208644377,-151.0,0.00043,7]
[312778039,1706208644387,-151.0,0.00043,7]
[312778040,1706208644396,-393.719375,0.00043,7]
[312778041,1706208644407,-393.719375,0.00043,7]
[312778042,1706208644417,-1328.69745,0.00043,7]
[312778043,1706208644427,-1328.69745,0.00043,7]
[312778044,1706208644437,-427.5878,0.00043,2]
[312778045,1706208644446,-150.0,0.000431,2]
[312778046,1706208644456,-154.38694922,0.00043268,30]
[312778047,1706208644465,-154.77975402,0.000434,30]
[312778048,1706208644474,-199.356479,0.00043569,30]
[312778049,1706208644483,-166.67911,0.00043569,30]
[312778050,1706208644492,-1711.964863,0.00043627,30]
[312778051,1706208644501,-1219.413068,0.00043627,30]
[312778052,1706208644510,-165.6339,0.00043627,30]
[312778053,1706208644519,-620.00000041,0.0004381,15]
[312778054,1706208644529,-508.23158121,0.00043835,31]
[312778055,1706208644538,-249.94603589,0.00043835,31]
[312778056,1706208644547,-500.0,0.00043835,31]
[312778057,1706208644556,-500.0,0.00043835,31]
[312778058,1706208644566,-500.0,0.00043835,7]
[312778059,1706208644575,-500.0,0.00043835,31]
[312778060,1706208644584,-500.0,0.00043835,31]
[312778061,1706208644594,-500.0,0.00043835,31]
[312778062,1706208644603,-1351.13,0.00043835,2]
[312778063,1706208644613,-500.0,0.00043835,7]
[312778064,1706208644623,-500.0,0.00043835,31]
[312778065,1706208644631,-505.70114783,0.00043835,31]
[312778066,1706208644640,-500.0,0.00043835,31]
[312778067,1706208644649,-151.0,0.00043835,7]
[312778068,1706208644660,-541.46,0.00043835,31]
[312778069,1706208644669,-500.0,0.00043835,31]
[312778070,1706208644679,-150.0,0.00043835,31]
[312778071,1706208644691,-216.96594702,0.00043835,31]
[312778072,1706208644700,-621.56,0.00043835,31]
[312778073,1706208644712,-500.0,0.00043835,31]
[312778074,1706208644724,-500.0,0.00043835,31]
[312778075,1706208644733,-503.34774243,0.00043835,31]
[312778076,1706208644744,-500.0,0.00043835,31]
[312778077,1706208644755,-500.0,0.00043835,31]
[312778078,1706208644764,-503.75246207,0.00043835,31]
[312778079,1706208644774,-500.0,0.00043835,31]
[312778080,1706208644783,-500.0,0.00043835,31]
[312778081,1706208644793,-500.0,0.00043835,31]
[312778082,1706208644802,-500.0,0.00043835,7]
[312778083,1706208644811,-500.0,0.00043835,31]
[312778084,1706208644819,-511.47,0.00043835,31]
[312778085,1706208644828,-500.64256648,0.00043835,31]
[312778086,1706208644839,-500.0,0.00043835,31]
[312778087,1706208644848,-500.0,0.00043835,31]
[312778088,1706208644857,-385.23578578,0.00043835,31]
[312778089,1706208644866,-500.0,0.00043835,31]
[312778090,1706208644875,-597.95,0.00043835,31]
[312778091,1706208644884,-506.86416193,0.00043835,31]
[312778092,1706208644893,-558.24375121,0.00043835,31]
[312778093,1706208644902,-507.41223608,0.00043835,31]
[312778094,1706208644911,-500.0,0.00043835,31]
[312778095,1706208644920,-500.0,0.00043835,31]
[312778096,1706208644929,-500.0,0.00043835,31]
[312778097,1706208644938,-500.0,0.00043835,31]
[312778098,1706208644947,-500.0,0.00043835,31]
[312778099,1706208644958,-443.73223521,0.00043835,7]
[312778100,1706208644967,-151.0,0.00043835,7]
[312778101,1706208644976,-500.0,0.00043835,10]
[312778102,1706208644986,-500.0,0.00043835,2]
[312778103,1706208644994,-500.0,0.00043835,31]
[312778104,1706208645004,-500.0,0.00043835,31]
[312778105,1706208645013,-500.0,0.00043835,31]
[312778106,1706208645023,-220.54223041,0.00043835,2]
[312778107,1706208645033,-500.0,0.00043835,31]
[312778108,1706208645043,-501.90194518,0.00043835,31]
[312778109,1706208645053,-1000.0,0.00043835,2]
[312778110,1706208645066,-648.06404913,0.00043835,31]
[312778111,1706208645076,-393.719375,0.00043835,7]
[312778112,1706208645086,-393.719375,0.00043835,7]
[312778113,1706208645096,-496.7419384,0.00043835,14]
[312778114,1706208645106,-150.0,0.00043835,21]
[312778115,1706208645117,-500.0,0.00043835,7]
[312778116,1706208645127,-500.0,0.00043835,31]
[312778117,1706208645137,-2902.24,0.00043835,2]
[312778118,1706208645147,-501.85644872,0.00043835,31]
[312778119,1706208645157,-346.81789867,0.00043835,31]
[312778120,1706208645167,-500.0,0.00043835,31]
[312778121,1706208645177,-228.72171008,0.00043835,31]
[312778122,1706208645186,-503.3,0.00043835,31]
[312778123,1706208645195,-500.0,0.00043835,31]
[312778124,1706208645277,-500.0,0.00043835,31]
[312778125,1706208645287,-676.19,0.00043835,31]
[312778126,1706208645297,-500.0,0.00043835,31]
[312778128,1706208645306,-500.0,0.00043835,31]
[312778130,1706208645315,-500.0,0.00043835,31]
[312778132,1706208645324,-1328.69745,0.00043835,7]
[312778133,1706208645333,-428.6039327,0.00043835,2]
[312778135,1706208645344,-1328.69745,0.00043835,7]
[312778137,1706208645353,-500.0,0.00043835,31]
[312778139,1706208645362,-500.0,0.00043835,31]
[312778142,1706208645371,-10029.87534116,0.00043835,10]
[312778144,1706208645380,-528.84439065,0.00043835,31]
[312778145,1706208645388,-500.0,0.00043835,31]
[312778147,1706208645398,-500.0,0.00043835,31]
[312778150,1706208645408,-500.0,0.00043835,31]
[312778151,1706208645417,-649.4186743,0.00043835,31]
[312778153,1706208645427,-500.0,0.00043835,31]
[312778155,1706208645436,-500.0,0.00043835,31]
[312778158,1706208645447,-500.0,0.00043835,31]
[312778159,1706208645457,-501.95979514,0.00043835,31]
[312778162,1706208645466,-155.33947312,0.00043835,31]
[312778165,1706208645476,-522.89904131,0.00043835,31]
[312778167,1706208645486,-588.11341422,0.00043835,2]
[312778170,1706208645496,-500.0,0.00043835,31]
[312778172,1706208645505,-150.53260592,0.00043835,31]
[312778174,1706208645515,-522.23,0.00043835,31]
[312778176,1706208645524,-500.0,0.00043835,31]
[312778178,1706208645534,-507.87599987,0.00043835,31]
[312778179,1706208645543,-1611.85,0.00043835,31]
[312778181,1706208645553,-500.0,0.00043835,31]
[312778184,1706208645562,-576.56,0.00043835,31]
[312778187,1706208645572,-1139.58,0.00043835,31]
[312778189,1706208645581,-500.0,0.00043835,31]
[312778191,1706208645592,-500.0,0.00043835,31]
[312778193,1706208645601,-500.0,0.00043835,31]
[312778195,1706208645611,-500.0,0.00043835,31]
[312778197,1706208645622,-500.0,0.00043835,31]
[312778198,1706208645631,-500.0,0.00043835,31]
[312778200,1706208645640,-500.0,0.00043835,31]
[312778202,1706208645649,-708.5,0.00043835,31]
[312778204,1706208645658,-500.0,0.00043835,31]
[312778206,1706208645667,-500.0,0.00043835,31]
[312778207,1706208645676,-500.0,0.00043835,31]
[312778209,1706208645687,-500.0,0.00043835,31]
[312778211,1706208645696,-500.0,0.00043835,31]
[312778213,1706208645706,-500.0,0.00043835,31]
[312778215,1706208645715,-500.0,0.00043835,31]
[312778217,1706208645724,-500.0,0.00043835,31]
[312778219,1706208645733,-500.0,0.00043835,31]
[312778220,1706208645742,-500.0,0.00043835,31]
[312778221,1706208645752,-500.0,0.00043835,31]
[312778222,1706208645761,-500.0,0.00043835,31]
[312778223,1706208645770,-500.0,0.00043835,31]
[312778225,1706208645779,-500.0,0.00043835,31]
[312778226,1706208645788,-391.44879806,0.00043835,31]
[312778228,1706208645797,-500.0,0.00043835,31]
[312778230,1706208645806,-500.0,0.00043835,31]
[312778232,1706208645815,-500.0,0.00043835,31]
[312778234,1706208645824,-500.0,0.00043835,31]
[312778236,1706208645833,-503.47869715,0.00043835,31]
[312778239,1706208645843,-267.68135803,0.00043835,31]
[312778240,1706208645852,-500.0,0.00043835,31]
[312778242,1706208645861,-500.0,0.00043835,7]
[312778244,1706208645870,-301.40774434,0.00043835,31]
[312778246,1706208645879,-1163.28,0.00043835,31]
[312778249,1706208645888,-500.0,0.00043835,31]
[312778250,1706208645897,-502.68614417,0.00043835,31]
[312778253,1706208645906,-500.0,0.00043835,31]
[312778255,1706208645915,-333.32948291,0.00043835,31]
[312778257,1706208645924,-500.0,0.00043835,31]
[312778259,1706208645933,-1000.0,0.00043835,2]
[312778261,1706208645942,-500.0,0.00043835,31]
[312778263,1706208645951,-151.0,0.00043835,7]
[312778265,1706208645960,-500.0,0.00043835,31]
[312778267,1706208645969,-500.0,0.00043835,31]
[312778269,1706208645978,-500.0,0.00043835,31]
[312778271,1706208645987,-500.0,0.00043835,31]
[312778272,1706208645997,-500.0,0.00043835,31]
[312778275,1706208646006,-500.0,0.00043835,31]
[312778277,1706208646016,-500.0,0.00043835,31]
[312778279,1706208646025,-500.0,0.00043835,31]
[312778281,1706208646034,-182.4855059,0.00043835,31]
[312778284,1706208646044,-500.0,0.00043835,31]
[312778287,1706208646053,-503.97198168,0.00043835,31]
[312778289,1706208646062,-500.0,0.00043835,31]
[312778293,1706208646071,-500.0,0.00043835,31]
[312778297,1706208646080,-411.448744,0.00043835,7]
[312778300,1706208646089,-500.0,0.00043835,31]
[312778304,1706208646098,-411.448744,0.00043835,7]
[312778307,1706208646108,-500.0,0.00043835,31]
[312778310,1706208646117,-647.93,0.00043835,31]
[312778313,1706208646126,-732.6,0.00043835,31]
[312778316,1706208646135,-500.0,0.00043835,31]
[312778318,1706208646145,-1041.67,0.00043835,31]
[312778321,1706208646154,-500.0,0.00043835,31]
[312778324,1706208646162,-831.24253,0.00043835,7]
[312778326,1706208646171,-500.0,0.00043835,31]
[312778329,1706208646180,-500.0,0.00043835,31]
[312778331,1706208646190,-831.24253,0.00043835,7]
[312778335,1706208646199,-500.0,0.00043835,31]
[312778338,1706208646208,-493.84599315,0.00043835,31]
[312778341,1706208646217,-500.0,0.00043835,31]
[312778344,1706208646226,-500.0,0.00043835,31]
[312778347,1706208646235,-500.0,0.00043835,31]
[312778350,1706208646244,-500.0,0.00043835,31]
[312778353,1706208646254,-500.0,0.00043835,31]
[312778354,1706208646263,-606.36333712,0.00043835,31]
[312778357,1706208646272,-150.67071796,0.00043835,31]
[312778360,1706208646282,-500.0,0.00043835,31]
[312778363,1706208646290,-500.0,0.00043835,31]
[312778365,1706208646300,-1931.96,0.00043835,2]
[312778367,1706208646309,-500.0,0.00043835,31]
[312778369,1706208646318,-500.0,0.00043835,31]
[312778372,1706208646327,-542.32,0.00043835,31]
[312778373,1706208646338,-500.0,0.00043835,31]
[312778377,1706208646348,-207.64397008,0.00043835,30]
[312778380,1706208646357,-500.0,0.00043835,31]
[312778382,1706208646366,-4971.59,0.00043835,31]
[312778385,1706208646375,-505.77537598,0.00043835,31]
[312778389,1706208646385,-500.0,0.00043835,31]
[312778391,1706208646394,-500.0,0.00043835,31]
[312778395,1706208646404,-500.0,0.00043835,31]
[312778398,1706208646413,-500.0,0.00043835,31]
[312778401,1706208646422,-680.71,0.00043835,31]
[312778404,1706208646432,-500.0,0.00043835,31]
[312778407,1706208646441,-500.0,0.00043835,31]
[312778410,1706208646450,-500.0,0.00043835,31]
[312778413,1706208646459,-500.0,0.00043835,31]
[312778416,1706208646468,-500.0,0.00043835,31]
[312778419,1706208646476,-548.94470437,0.00043835,31]
[312778422,1706208646487,-500.0,0.00043835,31]
[312778424,1706208646496,-500.0,0.00043835,31]
[312778427,1706208646504,-1320.99,0.00043835,31]
[312778430,1706208646515,-500.0,0.00043835,31]
[312778433,1706208646524,-500.0,0.00043835,31]
[312778436,1706208646533,-200.85562112,0.00043835,31]
[312778439,1706208646542,-500.0,0.00043835,31]
[312778442,1706208646552,-551.17,0.00043835,31]
[312778445,1706208646562,-500.0,0.00043835,31]
[312778447,1706208646571,-576.86,0.00043835,31]
[312778450,1706208646580,-522.61629406,0.00043835,31]
[312778452,1706208646592,-493.5834601,0.00043835,7]
[312778454,1706208646601,-200.17852788,0.00043835,30]
[312778456,1706208646610,-500.0,0.00043835,31]
[312778458,1706208646621,-605.42,0.00043835,31]
[312778460,1706208646630,-223.88461024,0.00043835,31]
[312778462,1706208646639,-500.0,0.00043835,31]
[312778464,1706208646647,-773.17,0.00043835,31]
[312778465,1706208646657,-500.0,0.00043835,31]
[312778468,1706208646666,-519.7,0.00043835,31]
[312778470,1706208646675,-500.0,0.00043835,31]
[312778473,1706208646683,-500.0,0.00043835,31]
[312778475,1706208646693,-1497.83,0.00043835,31]
[312778476,1706208646702,-582.77537918,0.00043835,31]
[312778478,1706208646711,-332.63173115,0.00043835,31]
[312778480,1706208646721,-191.43002492,0.00043835,31]
[312778482,1706208646730,-500.0,0.00043835,31]
[312778483,1706208646739,-500.0,0.00043835,31]
[312778486,1706208646812,-570.29,0.00043835,31]
[312778487,1706208646822,-500.0,0.00043835,31]
[312778488,1706208646831,-500.0,0.00043835,31]
[312778489,1706208646842,-460.85689115,0.00043835,31]
[312778490,1706208646850,-500.0,0.00043835,31]
[312778491,1706208646860,-554.57,0.00043835,31]
[312778492,1706208646869,-502.53728517,0.00043835,31]
[312778493,1706208646878,-500.0,0.00043835,31]
[312778494,1706208646888,-500.0,0.00043835,31]
[312778495,1706208646898,-500.0,0.00043835,31]
[312778496,1706208646909,-500.0,0.00043835,31]
[312778497,1706208646919,-594.6,0.00043835,31]
[312778498,1706208646928,-500.0,0.00043835,31]
[312778499,1706208646937,-1562.43,0.00043835,31]
[312778500,1706208646948,-500.0,0.00043835,31]
[312778501,1706208646958,-500.0,0.00043835,31]
[312778502,1706208646967,-500.0,0.00043835,31]
[312778503,1706208646976,-500.0,0.00043835,31]
[312778504,1706208646985,-500.0,0.00043835,31]
[312778505,1706208646994,-503.71707365,0.00043835,31]
[312778506,1706208647004,-500.0,0.00043835,31]
[312778507,1706208647014,-500.0,0.00043835,31]
[312778508,1706208647024,-737.64,0.00043835,31]
[312778509,1706208647033,-233.05721417,0.00043835,31]
[312778510,1706208647042,-598.74434,0.00043835,31]
[312778511,1706208647052,-500.0,0.00043835,31]
[312778512,1706208647061,-500.0,0.00043835,31]
[312778513,1706208647071,-500.0,0.00043835,31]
[312778514,1706208647081,-1637.55,0.00043835,31]
[312778515,1706208647091,-623.76,0.00043835,31]
[312778516,1706208647101,-500.0,0.00043835,31]
[312778517,1706208647111,-500.0,0.00043835,31]
[312778518,1706208647121,-3650.15,0.00043835,31]
[312778519,1706208647131,-500.0,0.00043835,31]
[312778520,1706208647140,-504.14,0.00043835,31]
[312778521,1706208647150,-564.44,0.00043835,31]
[312778522,1706208647159,-500.0,0.00043835,31]
[312778523,1706208647168,-500.0,0.00043835,31]
[312778524,1706208647177,-500.0,0.00043835,31]
[312778525,1706208647186,-500.0,0.00043835,31]
[312778526,1706208647195,-509.63618751,0.00043835,31]
[312778527,1706208647205,-500.0,0.00043835,31]
[312778528,1706208647214,-500.0,0.00043835,31]
[312778529,1706208647224,-500.0,0.00043835,31]
[312778530,1706208647233,-500.0,0.00043835,31]
[312778531,1706208647242,-200.0,0.00043835,31]
[312778532,1706208647251,-1887.22,0.00043835,31]
[312778533,1706208647260,-500.0,0.00043835,31]
[312778534,1706208647269,-525.75,0.00043835,31]
[312778535,1706208647278,-500.0,0.00043835,31]
[312778536,1706208647287,-500.0,0.00043835,31]
[312778537,1706208647297,-502.74206107,0.00043835,31]
[312778538,1706208647306,-502.49139577,0.00043835,31]
[312778539,1706208647315,-500.0,0.00043835,31]
[312778540,1706208647324,-500.0,0.00043835,31]
[312778541,1706208647333,-500.0,0.00043835,31]
[312778542,1706208647343,-1661.66,0.00043835,31]
[312778543,1706208647352,-500.0,0.00043835,31]
[312778544,1706208647361,-500.0,0.00043835,31]
[312778545,1706208647370,-500.0,0.00043835,31]
[312778546,1706208647379,-598.93,0.00043835,31]
[312778547,1706208647388,-500.0,0.00043835,31]
[312778548,1706208647397,-500.0,0.00043835,31]
[312778549,1706208647406,-842.04,0.00043835,31]
[312778550,1706208647415,-500.0,0.00043835,31]
[312778551,1706208647424,-500.0,0.00043835,31]
[312778552,1706208647433,-1000.0,0.00043835,2]
[312778553,1706208647442,-500.0,0.00043835,31]
[312778554,1706208647451,-500.0,0.00043835,31]
[312778555,1706208647460,-500.0,0.00043835,31]
[312778556,1706208647469,-438.04184095,0.00043835,31]
[312778557,1706208647478,-500.0,0.00043835,31]
[312778558,1706208647487,-239.14847916,0.00043835,31]
[312778559,1706208647496,-500.0,0.00043835,31]
[312778560,1706208647506,-500.0,0.00043835,31]
[312778561,1706208647516,-500.0,0.00043835,31]
[312778562,1706208647525,-505.33,0.00043835,31]
[312778563,1706208647534,-628.06,0.00043835,31]
[312778564,1706208647543,-151.0,0.00043835,7]
[312778565,1706208647552,-500.0,0.00043835,31]
[312778566,1706208647561,-500.0,0.00043835,31]
[312778567,1706208647570,-500.0,0.00043835,31]
[312778568,1706208647579,-500.0,0.00043835,31]
[312778569,1706208647590,-1394.39,0.00043835,31]
[312778570,1706208647599,-151.0,0.00043835,7]
[312778571,1706208647608,-500.0,0.00043835,31]
[312778572,1706208647620,-500.0,0.00043835,31]
[312778573,1706208647629,-201.09488115,0.00043835,31]
[312778574,1706208647638,-500.0,0.00043835,31]
[312778575,1706208647647,-1205.12,0.00043835,31]
[312778576,1706208647657,-6609.68,0.00043835,14]
[312778577,1706208647666,-502.55690142,0.00043835,31]
[312778578,1706208647675,-9030.278933,0.00043835,7]
[312778579,1706208647684,-500.0,0.00043835,31]
[312778580,1706208647694,-9030.278933,0.00043835,7]
[312778581,1706208647703,-500.0,0.00043835,31]
[312778582,1706208647713,-4850.66,0.00043835,31]
[312778583,1706208647722,-541.89,0.00043835,31]
[312778584,1706208647731,-500.0,0.00043835,31]
[312778585,1706208647740,-288.400246,0.00043836,2]
[312778586,1706208647749,-1000.0,0.00043836,2]
[312778587,1706208647758,-1000.0,0.00043836,2]
[312778588,1706208647767,-1000.0,0.00043836,2]
[312778589,1706208647777,-1000.0,0.00043836,2]
[312778590,1706208647786,-1000.0,0.00043836,2]
[312778591,1706208647795,-1000.0,0.00043836,2]
[312778592,1706208647804,-335.058269,0.00043836,2]
[312778593,1706208647814,-154.77975402,0.00043942,30]
[312778594,1706208647823,-154.77975404,0.00043965,30]
[312778595,1706208647832,-549.999999,0.00044,2]
[312778596,1706208647843,-1000.0,0.00044,44]
[312778597,1706208647852,-853.11973873,0.00044081,2]
[312778598,1706208647861,-500.0,0.00044109,31]
[312778599,1706208647870,-500.0,0.00044109,31]
[312778600,1706208647879,-500.0,0.00044109,7]
[312778601,1706208647888,-500.0,0.00044109,31]
[312778602,1706208647898,-500.0,0.00044109,31]
[312778603,1706208647907,-478.02826733,0.00044109,31]
[312778604,1706208647916,-1351.13,0.00044109,2]
[312778605,1706208647925,-500.0,0.00044109,7]
[312778606,1706208647934,-500.0,0.00044109,31]
[312778607,1706208647943,-500.0,0.00044109,31]
[312778608,1706208647953,-151.0,0.00044109,7]
[312778609,1706208647961,-541.46,0.00044109,31]
[312778610,1706208647970,-500.0,0.00044109,31]
[312778611,1706208647980,-150.0,0.00044109,31]
[312778612,1706208647989,-621.56,0.00044109,31]
[312778613,1706208647998,-500.0,0.00044109,31]
[312778614,1706208648008,-500.0,0.00044109,31]
[312778615,1706208648018,-500.0,0.00044109,31]
[312778616,1706208648027,-500.0,0.00044109,31]
[312778617,1706208648036,-500.0,0.00044109,31]
[312778618,1706208648046,-500.0,0.00044109,31]
[312778619,1706208648056,-179.96869557,0.00044109,31]
[312778620,1706208648066,-506.78839333,0.00044109,7]
[312778621,1706208648075,-500.0,0.00044109,31]
[312778622,1706208648085,-511.47,0.00044109,31]